Workbook

Sheet Cover Sheet
B2: Project Information
B3: Workbook Name: | C3: IED Risk Register-Millbrook
B4: Project Title: | C4: SWS EMA - Lot 8 - EIA
B6: Section: | C6: Industrial Emission Directive Permit | E6: Divn/Dept: | I6: Please select from the dropdown or for enter manually
B7: Subject: | C7: Risk Assessment | E7: Project Nr: | F7: 790101
B8: Project Manager: | C8: Daniel Watson | E8: File Ref: | F8: 790101-MMD-IED-MIL-CA-C-001 | G8: 790101-MMD-IED-CA-C-004 | H8: 790101-MMD-IED-CA-C-004 | I8: Please use the format Project Number/PIMS Unique number (e.g. 123456/5) or project specific format
B9: Originator | C9: Tom Reynolds | E9: Calc Nr:
B10: Checker | C10: Anita Manns | E10: Nr Sheets: | F10: 6 | I10: This is updated automatically as sheets are added/removed
B11: Template Version | C11: E
B12: Design Phase
B16: Computer Applications Used | G16: Version/Date | I16: Please enter any other programs used as part of the calculation
B17: Microsoft Excel | G17: 2108
B23: Scope of Checking
B24: Manual calculations | E24: Computer generated calculations
I25: Enter a description of the checks that are required/have been performed
B27: Sheets | C27: Calculations by | F27: Checked by
C28: Name | D28: Signature | E28: Date | F28: Name | G28: Signature | H28: Date | I28: Please keep an audit list of the authors and checkers of each calculation sheet
A29: 292574555 | B29: 1.Risk assessment | C29: Hari Prasath | D29: HP | E29: 2022-08-15 | F29: Ashwin Powar | G29: AP | H29: 2022-09-02
A30: 292575378 | B30: 2.Total vol. - Mitigation | C30: Hari Prasath | D30: HP | E30: 2022-08-15 | F30: Ashwin Powar | G30: AP | H30: 2022-09-02
A31: 292576031 | B31: 3.Containment volume-Total vol. | C31: Hari Prasath | D31: HP | E31: 2022-08-15 | F31: Ashwin Powar | G31: AP | H31: 2022-09-02
A32: 292576417 | B32: 4.Current asset evaluation | C32: Hari Prasath | D32: HP | E32: 2022-08-15 | F32: Ashwin Powar | G32: AP | H32: 2022-09-02
A33: 292576606 | B33: 5.Containment type-Total vol. | C33: Tommaso Tosi | D33: TT | E33: 2022-08-15 | F33: Daniel Watson | G33: DW | H33: 2022-09-02
B35: Approved by
B36: Approver | D36: Signature | G36: Date
B37: Tom Reynolds | D37: TR | G37: 2024-02-26
B39: Version History
B40: Version | C40: Description | F40: Originator | G40: Checker | H40: Date
B41: P01 | C41: Initial Calculation | F41: Hari Prasath | G41: Ashwin Powar | H41: 2022-09-02 | J41: Latest Version | K41: =OFFSET(B40,COUNTA(B41:B51),) -> P03
B42: P02 | C42: Worksheet 5 revised to reflect design development | F42: Tom Reynolds | G42: Tom Reynolds | H42: 2024-06-27 | K42: 2024-12-16
B43: P03 | C43: Tank list amended to include Liquor tank on worksheet three. | F43: Tom Reynolds | G43: Anita Manns | H43: 2024-12-16 | J43: Last Checked | K43: 2024-12-16

Sheet Introduction & Conclusion
B3: Introduction
B4: The IED permit application requires identification secondary containment solutions in order for the site to comply, as far as is reasonably practicable, with Best Available Technique (BAT), in terms of the requirement for the provision of secondary containment. This include risk assessment of the nature of the product stored. | C4: Please introduce what this spreadsheet is
B6: Purpose
B7: The aim of the study is to support Southern Water’s permitting and sludge treatment strategy | C7: Please enter the purpose of the spreadsheet
B9: Required Output
B10: A high-level desktop-based risk assessment using the ABDA classification tool to calculate the sites overall risk rating based on a Source-Pathway-Receptor Analysis. Simulation of catastrophic failure of the largest above ground volume. | C10: Please define what the outputs of the spreadsheet should be
B12: Conclusions
B13: The solution requires multiple bunds due to existing topography and access requirements. The solution will impose significant operational constraints. | C13: If the spreadsheet/calculation has a conclusion please enter it here
B15: Assumptions
B16: CIRIA 736 Proposal amended 201221, Clause 3.2 study, Points (7-18), Page 7. 1.The failure risk is assessed for a Single tank 2.Only the above ground volume is considered for failure | C16: Please ensure all assumptions are stated Please specify any assumptions that apply to the whole spreadsheet Assumptions on single sheets should be placed on the sheet Assumptions on a cell or range should be put next to the cell or in a comment on top of it
B18: Basic Design Information or Source and Reference
B19: CIRIA report C736
B22: Identify documents/technical records where output will be used

Sheet 1.Risk assessment
A2: 1.1 | B2: Source
B4: Material | C4: Physical properties | D4: Maximum quantity | E4: units | F4: Storage | G4: Flammability | H4: Corrosive | I4: Ecotoxicity (based on LD and quantity) | J4: Hazard rating
B5: Sludge for AD. Anaerobic digester 04 used as example and considered typical for the site for RA purposes. See worksheet 3 for each bund. | C5: Liquid with sludge, Gas (methane) | D5: 3251 m3 (approximately) - total volume for tank [As per IED Permit, Main Supporting Document 790101_MSD_Main_MIL,Page 3] | E5: m3 | F5: Steel tank | G5: Methane produced is flammable Digestate isn't flammable | H5: Low | I5: Organic heavy - Nitrogen, Phosphorous, Ammonia, BOD, TSS, COD - Environmental hazard (algae blooms and death of organisms) Pathogens - Human hazard (E.coli etc.) | J5: M
I6: Overall | J6: M
A8: 1.2 | B8: Pathway and Receptor
B39: Figure 1.1 Site Layout with Source-Pathway-Receptor | H39: Figure 1.2 Site picture of Anaerobic digester 04
B42: Pathway - the route from primary containment to receptor (extent of loss of containment) | D42: Time of concentration/ duration of source outside containment | F42: Hazard - Transport potential | I42: Receptor | J42: Hazard - Damage potential
B43: The Tidal Flat Deposits underlying the site are classified by the Environment Agency as Unproductive strata, however the River Terrace Deposits below these are classified as a Secondary A aquifer. [As per IED Permit, Site Condition report 790101_MSD_SCR_MIL,Page 3] | D43: Direct contamination but over an extended period of time | F43: M | I43: The River Test lies approximately 350m to the south-east of the site at its closest point (where the Southampton Docks are located). In the area it flows in approximately a north-west to south-east direction towards The Solent. There is a watercourse to the west of the site which has a low flood risk and depth of flood greater than 900mm, which could impact the WTW site. [As per Site Condition Report 790101_MSD_SCR_MIL, Hydrology and flooding, Page 3],[As per Climate Change Risk Assessment,790101_ERA_CCRA_MIL, Page 8] | J43: H
B44: If the permeable area were to get saturated (high groundwater) or became blocked with sludge, areas will act as impermeable and transport sludge downstream. | D44: Direct contamination but over an extended period of time | F44: M
B45: The site is located within Flood Zone 1 therefore at low risk of flooding from rivers or the sea under the current conditions. Increased rainfall as a result of climate change could exacerbate the existing flood risk. [As per IED Permit, Climate Change Risk Assessment, 790101 _ERA_CCRA_MIL,Page 10] | D45: Direct contamination | F45: M
B46: Existing underground services - ductwork, tunnels etc. (locations not known) | D46: Direct contamination but over an extended period of time | F46: L
B47: Existing underground sludge pipework | D47: Direct contamination but over an extended period of time | F47: M
B48: There is impermeable road surfacing around the tanks. Ground naturally drains to this area If inventory is lost or cascaded onto the road (saturated permeable ground), sludge will be transported through the drainage channel to the head of the wastewater treatment works | D48: Minutes - hours | F48: L
B49: If the drainage channel were to get blocked, it may overflow locally to the permeable surrounding area. | D49: Minutes - hours | F49: M | I49: The site is located within a nitrate vulnerable zone (NVZ) with concern over eutrophic water conditions in the Hamble estuary. There is also a Special Protection Area (SPA) 120m to the east. [As per Site Condition Report 790101_MSD_SCR_MIL,Sensitive land use, Page 3] | J49: H
B50: Risk of surface flooding on the site. There are areas with low and medium risk of surface water flooding across the site under the current conditions. Increased rainfall as a result of climate change could exacerbate the existing flood risk. [As per Climate Change Risk Assessment,790101_ERA_CCRA_MIL, Page 10] | D50: Minutes - N/A (dependant on flooding extent) | F50: M | I50: Four active contemporary trade directives are located within 250m of the site including; a cargo handling service, garage, gas supplier and a petrol filling station (Co-Op Millbrook, 140m north-east). Additionally,14 inactive contemporary trade directives are present within 250m of the site along Southampton western docks predominantly entailing of freight, cargo and cleaning services. [As per Nearby industrial land uses,Main Supporting Document 790101_MSD_Main_MIL,Page 4] | J50: H
D51: Overall | F51: M | I51: Overall | J51: H
B54: *Flooding in flood zone 3 only have a 1 in 100 year probability of happening in a year
B57: Combination of Hazards | C57: =J6&F51&J51 -> MMH
B60: Overall risk rating for zone (Ciria 736) | C60: H
A64: 1.3 | B64: Frequency of loss of containment
B67: Failure mode | C67: Description | D67: Existing consequence and mitigation measure | K67: Annual probability of loss of containment | L67: Rating
B68: Operational failure - tank (partial) | C68: Overfilling/overflow of tank Foaming | D68: Thickened sludge with 7-8% TDS is stored in a small digester feed tank from where it is fed to 4 No. anaerobic digesters.Digested sludge discharges into 2 No. post digestion storage tanks from where it is fed to 3 No. centrifuges for dewatering. Both clean and contaminated surface water is directed to a pumping station which recirculates it back into the system. The stormwater drainage of potentially contaminated areas from within the Site boundary is routed into the head of the works with no discharge outside of the site boundary. This allows site operations some time to deal with the leaks from operational failures. Flows exceeding the drainage system capacity will require mitigation with an improved inspection regime to catch spills prior to becoming significant. The tanks are monitored by SCADA system. | K68: 1 in 100 to 1 in 1 Million | L68: M
B69: Structural failure - tank (catastrophic) | C69: Catastrophic failure due to significant external damage Potential to lose total volume if mixer pipework fails/break off of tank - has been a failure mode for digesters in the past | D69: The tank is located above ground. For any loss of containment below ground, the sludge liquid will percolate into the permeable soil at a slow rate over a long period if not detected by the level or temperature alarms. In the case of significant damage above ground, the total volume contained above ground could spill. In the event of a catastrophic failure, sludge would flow in all directions as there is no containment immediately around the tank. The sludge would predominantly flow to the southern boundary. | K69: 1 in 100 to 1 in 1 Million | L69: M
B70: Structural failure - tank (partial) | C70: Most likely through defects formed in steel Most critical defects would at low level along the side of the tank walls or tank base. Defects would need to be large >6mm to allow for sludge to pass through freely. General screens at WwTW are 6-10mm, thus defects would need to be in the same range to allow for sludge to pass freely. Roof failure | D70: Partial structural failure of the tank would mainly be through surface defects. In the case of significant defects forming above ground, the volume contained above ground would seep through the defects. If the defects are significant, the tank could potentially lose the above ground volume over a long period of time if the level and temperature alarms are not functioning. However, this is unlikely. Due to operational presence on site, large drops in levels in the tanks and significant leaks above ground would be noticed. Significant defects below/above ground would also be easily spotted during the daily visual inspections. | K70: 1 in 100 to 1 in 1 Million | L70: M
B71: Structural failure - pipework (catastrophic) | C71: Loss of containment due to failure of above ground connecting pipework and rising mains | D71: In the unlikely event where the above ground rising mains to the digester, heatamix pipework or de-gritting pipework fails and breaks off, a significant volume would spill out. Tanks have level and temperature alarms so any required valve could be immediately shut off by operational staff. The consequence of a catastrophic failure of containment is it's able to flow in all directions as there is no containment bunds immediately around the tank. Based on topography, sludge will cascade towards the south and eventually into the drainage system. Total loss of containment is unlikely. A partial loss of containment would be more likely to occur. | K71: 1 in 100 to 1 in 1 Million | L71: M
B72: Structural failure - pipework (partial) | C72: Loss of containment most likely to occur where there are weak points in the pipework - Most likely through failures where pipe connects with the structure, bolts/sealant at pipe flanges/valves or along any pipe pitting. Weak point could be created through either human damage (during maintenance/operation), erosion (high velocities and silt content within the pipe) or environmental (corrosion) Valve failure/seizure | D72: Majority of pipework and connections are located above ground. Some of the pipework is located below ground or within the chambers below ground. If loss of containment occurs underground (through leaks, joints and seals), sludge will percolate into the soil at a slow rate over a long period and localised wet areas will be present above ground. If loss of containment occurs above ground through leaks or damage to pipework, due to the permeable stone around tank, sludge will also percolate into the soil at a slow rate over a long period. Due to operational presence on site and SCADA monitoring, significant leaks (above or below) ground would be noticed and loss of containment would be mitigated through operational measures (closing of valves). Total loss of containment is unlikely (partial loss of containment would be more likely to occur). | K72: 1 in 100 to 1 in 1 Million | L72: M
B73: Vehicular impact (partial to catastrophic) | C73: Impact from vehicles - damage to pipes or tank causing loss of containment | D73: No known vehicle impacts - but no barrier/protection Vehicles could potentially impact and damage tank which is located above ground. Vehicular impact could cause some damage to the tank, if significant, proportion of above ground volume could be lost. Vehicle is however unlikely to damage underground sections of tanks or displace any liquid within them. Total loss of containment could occur if the vehicle impact causes significant damage to the tank. High speed impact unlikely, but vehicle could damage pipework connected to tank (mixer pump) and cause a significant hole in the tank at low level. Could impact a potential weak point. | K73: 1 in 100 to 1 in 1 Million | L73: M
B74: Vandalism | C74: Vandalism of infrastructure - damage to pipes or tank causing loss of containment | D74: No known vandalism to tanks or pipework. If vandalism damage were to occur, total loss of containment is unlikely, but could occur if significant damage or on theft of mixer pumps and pipework. Partial loss of containment would be more likely to occur if slight damage was done. | K74: < 1 in 1 Million | L74: L
B75: Flooding | C75: River flooding - Flood zone 2 and zone 3 - damage to pipes or tank causing loss of containment | D75: The site is located in an Environment Agency zone 1 flood risk area. Areas within zone 1 have 1 in a 1,000 chance of river or sea related flooding. However, to the east of the site a section of Southampton docks is located within a zone 3 flooding risk area due to the proximity of the River Test. Areas within flood zone 3 have been shown to be at a 1% or greater probability of flooding from rivers or 0.5% or greater probability of flooding from rivers/ the sea. [As per Site Condition Report 790101_MSD_SCR_MIL, Hydrology and flooding, Page 3] | K75: 1 in 100 to 1 in 1 Million | L75: M
B77: *Site is manned. Probability and frequency thus reduced
B80: Frequency of loss of containment (Ciria 736) | C80: M
A83: 1.4 | B83: Overall zone hazard rating
B85: Overall zone hazard rating (Ciria 736) | C85: High
A88: 1.5 | B88: Containment required
B91: Containment required | C91: Class 3

Sheet 2.Total vol. - Mitigation
A3: 2.1 | B3: Catastrophic/Partial failure - modes (loss of containment)
B5: The below proposed mitigation measures are recommended and should be read in conjunction with the proposed containment options in '5.Containment type-Total vol.' The risk rating after mitigation incorporates risk reduction due to the engineered containment options.
B7: Risk | C7: Cause | D7: Existing consequence and mitigation measure | K7: Existing zone risk rating | L7: Proposed Mitigation | V7: Risk rating after mitigation
C8: Operational failure - tank (partial) | D8: ='1.Risk assessment'!$D$68 -> Thickened sludge with 7-8% TDS is stored in a small digester feed tank from where it is fed to 4 No. anaerobic digesters.Digested sludge discharges into 2 No. post digestion storage tanks from where it is fed to 3 No. centrifuges for dewatering. Both clean and contaminated surface water is directed to a pumping station which recirculates it back into the system. The stormwater drainage of potentially contaminated areas from within the Site boundary is routed into the head of the works with no discharge outside of the site boundary. This allows site operations some time to deal with the leaks from operational failures. Flows exceeding the drainage system capacity will require mitigation with an improved inspection regime to catch spills prior to becoming significant. The tanks are monitored by SCADA system. | K8: ='1.Risk assessment'!L68 -> M | L8: All tanks undergo a delegated inspection regime and the process parameters are monitored and understood by site operatives. Site operators are on site (7am – 7pm). Daily site inspection regime will consist of a site walkover. Any defects located will be escalated to site manager for a repair resolution to be determined. If there is not an immediate risk posed by the defective asset and large scale repair is required then, the asset planning team will be informed in order to plan the necessary repairs. Any reactive works required will be undertaken by Site Operations team. Inspection/Frequency >Walk round the site, identify and clear up any waste materials: Daily >Note signs of any deterioration of tanks or surroundings: Daily >Note any small leaks or spills, fix them and clean them up immediately: Daily >Integrity/Condition assessment all key sludge assets - Drain tank and inspect condition: 10 yearly Further mitigation >A proactive planned preventative maintenance (PPM) and replacement programme linked to asset lifespan. Site Manager ensures the PPM is implemented effectively to minimise the probability of equipment malfunction. >A robust leak detection and repair plan will be set out and enacted >The site will be monitored using a telemetry to monitor tank levels and process flows. Trigger levels will be assigned to risk rating and proportional response will be taken. Alarms that protect against a loss of containment will have a response time the same as for other emergencies (Approx. 1 hr). >Penstock valves will be placed at strategic SW chambers to reduce the risk of sludge flows getting in to the SW drainage system. An automated solution for closing them and also any need for regrading of surfaces to reduce risk will be looked into at detailed design. Control of substances hazardous to health (COSHH) assessment undertaken for all raw materials. | V8: L
C9: Structural failure - tank (catastrophic) | D9: ='1.Risk assessment'!$D$69 -> The tank is located above ground. For any loss of containment below ground, the sludge liquid will percolate into the permeable soil at a slow rate over a long period if not detected by the level or temperature alarms. In the case of significant damage above ground, the total volume contained above ground could spill. In the event of a catastrophic failure, sludge would flow in all directions as there is no containment immediately around the tank. The sludge would predominantly flow to the southern boundary. | K9: ='1.Risk assessment'!L69 -> M | L9: The above inspection and further mitigation proposals will be applicable to structural failure, also. As part of proposed mitigation, regular daily inspections of the site drainage systems and other equipment are to be undertaken, with any repairs and maintenance carried out if necessary. | V9: L
C10: Structural failure - tank (partial) | D10: ='1.Risk assessment'!$D$70 -> Partial structural failure of the tank would mainly be through surface defects. In the case of significant defects forming above ground, the volume contained above ground would seep through the defects. If the defects are significant, the tank could potentially lose the above ground volume over a long period of time if the level and temperature alarms are not functioning. However, this is unlikely. Due to operational presence on site, large drops in levels in the tanks and significant leaks above ground would be noticed. Significant defects below/above ground would also be easily spotted during the daily visual inspections. | K10: ='1.Risk assessment'!L70 -> M | L10: The inspection and further mitigation proposals outlined as mitigation for Operational failure will be applicable to structural tank failure, also. To minimise loss of containment underground, it is advised that the tanks be visually inspected on daily basis and structurally inspected with increased regularity. Falling head tests should also be regularly carried out to limit any potential leaks underground. Tank to be refurbished if necessary. Permeable areas around the tanks (gravel) and low lying grassed areas are also to be replaced with impermeable hardstanding to remove the pathway to the ground. Soakaways to be filled in (concrete) and all connected drainage to connect to liquor return. | V10: L
C11: Structural failure - pipework (catastrophic) | D11: ='1.Risk assessment'!$D$71 -> In the unlikely event where the above ground rising mains to the digester, heatamix pipework or de-gritting pipework fails and breaks off, a significant volume would spill out. Tanks have level and temperature alarms so any required valve could be immediately shut off by operational staff. The consequence of a catastrophic failure of containment is it's able to flow in all directions as there is no containment bunds immediately around the tank. Based on topography, sludge will cascade towards the south and eventually into the drainage system. Total loss of containment is unlikely. A partial loss of containment would be more likely to occur. | K11: ='1.Risk assessment'!L71 -> M | L11: To mitigate the very unlikely occurrence where the above ground pipework could fail/collapse, the necessary pump controls (Low and high pressure switches to trip the pump) need to be put in place, if not already, if there is a sudden loss of pressure in the rising mains (feed, mixing, hot water pumps rising mains), the pumps should stop. All above ground pipework and chambers to be visually inspected daily. Structural inspections and falling head testing should be undertaken with increased regularity to test for any leaks. Pipework and chambers to be refurbished or replaced, if necessary to BAT standards. Permeable areas around the tank (gravel) and low lying grassed areas is also to be replaced with impermeable hardstanding to remove the pathway to the ground. Soakaways to be filled in (concrete) and all connected drainage to connect to liquor return. | V11: L
C12: Structural failure - pipework (partial) | D12: ='1.Risk assessment'!$D$72 -> Majority of pipework and connections are located above ground. Some of the pipework is located below ground or within the chambers below ground. If loss of containment occurs underground (through leaks, joints and seals), sludge will percolate into the soil at a slow rate over a long period and localised wet areas will be present above ground. If loss of containment occurs above ground through leaks or damage to pipework, due to the permeable stone around tank, sludge will also percolate into the soil at a slow rate over a long period. Due to operational presence on site and SCADA monitoring, significant leaks (above or below) ground would be noticed and loss of containment would be mitigated through operational measures (closing of valves). Total loss of containment is unlikely (partial loss of containment would be more likely to occur). | K12: ='1.Risk assessment'!L72 -> M | L12: As tank was fit for purpose at the time of construction, secondary containment provision is not considered for the underground pipework. To assess the condition of underground pipework and chambers, CCTV and leakage detection (falling head tests) should be done on a regular basis to check if any leakage is experienced. All above ground pipework and chambers to be visually inspected on daily basis for any leaks. Pipework and chambers to be refurbished or replaced, if necessary to BAT standards. Permeable areas around the tanks (gravel) and low lying grassed areas is also to be replaced with impermeable hardstanding to remove the pathway to the ground. Soakaways to be filled in (concrete) and all connected drainage to connect to liquor return. | V12: L
C13: Vehicular impact (partial to catastrophic) | D13: ='1.Risk assessment'!$D$73 -> No known vehicle impacts - but no barrier/protection Vehicles could potentially impact and damage tank which is located above ground. Vehicular impact could cause some damage to the tank, if significant, proportion of above ground volume could be lost. Vehicle is however unlikely to damage underground sections of tanks or displace any liquid within them. Total loss of containment could occur if the vehicle impact causes significant damage to the tank. High speed impact unlikely, but vehicle could damage pipework connected to tank (mixer pump) and cause a significant hole in the tank at low level. Could impact a potential weak point. | K13: ='1.Risk assessment'!L73 -> M | L13: Vehicle barriers or bollards are proposed around front of the tanks along the road. Potential for the fence installed to be stronger and to be able to withstand some vehicular impact. The likelihood of such occurrence in low. This is to mitigate any potential impacts from vehicles and potential damage which could lead to loss of containment. | V13: L
C14: Vandalism | D14: ='1.Risk assessment'!$D$74 -> No known vandalism to tanks or pipework. If vandalism damage were to occur, total loss of containment is unlikely, but could occur if significant damage or on theft of mixer pumps and pipework. Partial loss of containment would be more likely to occur if slight damage was done. | K14: ='1.Risk assessment'!L74 -> L | L14: Access to the Site is restricted by automatically operated gates which are closed during operating hours. Access is through the use of a telecom system prior to entry or key fob.The Site perimeter is comprised of 8ft chainlink fencing. The site is manned during opening hours (7am – 7pm), and staff are on call. The Site has CCTV at the inlet, gas holder and access gate. [As per Main Supporting Document 790101_MSD_Main_MIL, Site Security, Page 36] | V14: L
C15: Flooding | D15: ='1.Risk assessment'!$D$75 -> The site is located in an Environment Agency zone 1 flood risk area. Areas within zone 1 have 1 in a 1,000 chance of river or sea related flooding. However, to the east of the site a section of Southampton docks is located within a zone 3 flooding risk area due to the proximity of the River Test. Areas within flood zone 3 have been shown to be at a 1% or greater probability of flooding from rivers or 0.5% or greater probability of flooding from rivers/ the sea. [As per Site Condition Report 790101_MSD_SCR_MIL, Hydrology and flooding, Page 3] | K15: ='1.Risk assessment'!L75 -> M | L15: Ensure flood plan for site follows EA guidance. Include provision of sump pump to keep site clear of floodwater. Ensure diesel generators are at sufficient height to ensure they are not at risk of flooding (coastal or otherwise) | V15: L

Sheet 3.Containment volume-Total vol.
A3: 3.1 | B3: Secondary containment volume requirement - Inventory volume (above ground)
B5: A site-wide solution is not adopted for this site due to existing topography, the requirements for containment to be within the permitted area and identification of the most cost effective solution with respect to the extent of new impermeable areas.
B6: Additionally this application includes Slowhill Copse site as an DAA, this site is geographically distinct to the Millbrook site so requires separate containment solution.
B7: As such multiple bunds are utilised and each requires calculation for capacity and containment volume, this accounts for above and below ground volumes as noted in CIRIA C736.
B10: Millbrook STC
B12: An overview of the general bund areas is show to the right.
B13: Further detail on each is provided below.
B14: See also worksheet 5.
B17: Post Screened Storage (PSST)
B20: Main Bund - digestors & related
B22: Thickened Sludge Storage Tanks (TSSTs)
B33: Containment Volumes
B35: Main Bund - digestors & related
E37: Tank designation | F37: Volume (m³)
E38: Digestor 1 | F38: 2500 | H38: Notes: all tanks are above ground so full volume used for calculation
E39: Digestor 2 | F39: 2500
E40: Digestor 3 | F40: 2500
E41: Digestor 4 | F41: 3251
E42: Post Digestion Tank PDST 1 | F42: 535
E43: Post Digestion Tank PDST 2 | F43: 535
E44: Liquor Buffer storage tank | F44: 572
E46: Total Volume | F46: =SUM(Table2[Volume (m³)]) -> 12393
E47: 25% of total | F47: =F46*0.25 -> 3098.25
E48: 110% of largest | F48: =F41*1.1 -> 3576.1
E50: Applicable rule is for containment of 110% of Digestor 4
B64: Post Screened Storage (PSST)
E66: Tank designation | F66: Volume (m³) | G66: Footprint (m²) | H66: Height Above ground (m) | I66: Vol. above ground (m³)
E67: Post Screened Storage Tank 01 | F67: 2500 | G67: 276.5 | H67: 1.2 | I67: =Table24[[#This Row],[Height Above ground (m)]]*Table24[[#This Row],[Footprint (m²)]] -> 331.8
E68: Post Screened Storage Tank 02 | F68: 2500 | G68: 276.5 | H68: 1.2 | I68: =Table24[[#This Row],[Height Above ground (m)]]*Table24[[#This Row],[Footprint (m²)]] -> 331.8
H70: Total Volume | I70: =SUM(Table24[Vol. above ground (m³)]) -> 663.6
H71: 25% of total | I71: =I70*0.25 -> 165.9
H72: 110% of largest | I72: =I68*1.1 -> 364.98
E74: Applicable rule is for containment of 110% of one tank's above ground volume with respect to a practical spill scenario.
E76: Noting that with the limited volume stored above ground the containment solution is primarily with respect to potential overtopping of the tanks. An overall appropriate containment solution for these tanks will combine the containment outlined with other measures in relation to instrumentation and automated process controls (detection and shut off) to reduce the risk and management of spills from tanks.
B79: Thickened Sludge Storage Tanks (TSSTs)
E80: Tank designation | F80: Volume (m³) | H80: Notes: both tanks are above ground so full volume used for calculation
E81: Thickened Sludge storage Tank 01 | F81: 639 | H81: This cannot be included in the 'main bund' due to access requirements and existing topography
E82: Thickened Sludge storage Tank 02 | F82: 639
E84: Total Volume | F84: =SUM(Table25[Volume (m³)]) -> 1278
E85: 25% of total | F85: =F84*0.25 -> 319.5
E86: 110% of largest | F86: =F82*1.1 -> 702.9
E88: Applicable rule is for containment of 110% of one tank
B100: Slowhill Copse
B102: An overview of the general bund areas is show to the right.
B103: Further detail on each is provided below.
B104: See also worksheet 5.
B107: Screened sludge storage tanks bund
B111: Unscreened Sludge Tanks bund
B126: Unscreened Sludge Tanks bund
E128: Tank designation | F128: Volume (m³) | G128: Footprint (m²) | H128: Height Above ground (m) | I128: Vol. above ground (m³)
E129: Unscreened sludge tank 1 | F129: 1889 | G129: 276 | H129: 5.84 | I129: =Table246[[#This Row],[Height Above ground (m)]]*Table246[[#This Row],[Footprint (m²)]] -> 1611.84
E130: Unscreened sludge tank 2 | F130: 2055 | G130: 276 | H130: 5.84 | I130: =Table246[[#This Row],[Height Above ground (m)]]*Table246[[#This Row],[Footprint (m²)]] -> 1611.84
E131: Unscreened sludge tank 3 | F131: 2055 | G131: 276 | H131: 5.14 | I131: =Table246[[#This Row],[Height Above ground (m)]]*Table246[[#This Row],[Footprint (m²)]] -> 1418.64
H133: Total Volume | I133: =SUM(Table246[Vol. above ground (m³)]) -> 4642.32
H134: 25% of total | I134: =I133*0.25 -> 1160.58
H135: 110% of largest | I135: =I130*1.1 -> 1773.024
E137: Applicable rule is for containment of 110% of one tank's above ground volume with respect to a practical spill scenario.
E139: Noting that with the limited volume stored above ground the containment solution is primarily with respect to potential overtopping of the tanks. An overall appropriate containment solution for these tanks will combine the containment outlined with other measures in relation to instrumentation and automated process controls (detection and shut off) to reduce the risk and management of spills from tanks.
B142: Screened Sludge Storage Tanks bund
E144: Tank designation | F144: Volume (m³) | G144: Footprint (m²) | H144: Height Above ground (m) | I144: Vol. above ground (m³)
E145: Post Screened Storage Tank 01 | F145: 1141 | G145: 192 | H145: 2.44 | I145: =Table247[[#This Row],[Height Above ground (m)]]*Table247[[#This Row],[Footprint (m²)]] -> 468.48
E146: Post Screened Storage Tank 02 | F146: 1141 | G146: 192 | H146: 2.44 | I146: =Table247[[#This Row],[Height Above ground (m)]]*Table247[[#This Row],[Footprint (m²)]] -> 468.48
H148: Total Volume | I148: =SUM(Table247[Vol. above ground (m³)]) -> 936.96
H149: 25% of total | I149: =I148*0.25 -> 234.24
H150: 110% of largest | I150: =I146*1.1 -> 515.328
E152: Applicable rule is for containment of 110% of one tank's above ground volume with respect to a practical spill scenario.
E154: Noting that with the limited volume stored above ground the containment solution is primarily with respect to potential overtopping of the tanks. An overall appropriate containment solution for these tanks will combine the containment outlined with other measures in relation to instrumentation and automated process controls (detection and shut off) to reduce the risk and management of spills from tanks.

Sheet 4.Current asset evaluation
A3: 4.1 | B3: Current Asset Evaluation | C3: Anaerobic digester 04
B4: Description | C4: Thickened sludge with 7-8% TDS is stored in a small digester feed tank from where it is fed to 4 No. anaerobic digesters.Digested sludge discharges into 2 No. post digestion storage tanks from where it is fed to 3 No. centrifuges for dewatering.
B5: Number of tanks | C5: 1 (Risk assessed for one tank only as example of typical tank)
B6: Volume of tank | C6: 3251 m3 (approximately) - total volume for tank
B7: Material of tank | C7: Steel
B8: Above/below ground? | C8: Above ground tank
B9: Pipe material | C9: All connecting pipework is thick-walled – some above ground and some below ground.
B10: Drainage for zone | C10: The drainage is directed towards the Southern direction [As per Millbrook WTW Drainage, 720116/M104/2101]
B11: Year of construction | C11: -
B12: Surrounding area | C12: Gravel [As per IED Permit, Site Condition report 790101_MSD_SCR_MIL,Page 21]
B14: Pump rate - to Anaerobic digester 04 | C14: -
B15: Pump rate - from Anaerobic digester 04 | C15: -
B18: Is asset fit for purpose? | C18: The tanks were originally designed and constructed to hold digested sludge and has been operating with no notable concerns. Tank has not undergone a change of use
B19: Condition of the tank Any tank failures - cracks, flaking, corrosion, overflows, overfilling? | C19: no structural concern
B20: Condition of pipework Pipe leaks, corrosion? | C20: No visible issues/leaks reported by operational staff
B21: Protection of assets | C21: No vehicle impact protection - Vehicle barriers or bollards are proposed around front of the tanks along the road. Potential for the fence installed to be stronger and to be able to withstand some vehicular impact.
B22: Control/monitoring/alarming measures in place? | C22: All tanks undergo a delegated inspection regime and the process parameters are monitored and understood by site operatives
B23: Secondary containment provided? | C23: None
B24: Secondary containment condition? | C24: N/A

Sheet 5.Containment type-Total vol.
A3: 5.1 | B3: Containment to be provided
B5: Based on a 'High' site risk rating for the zone, all tertiary options in Section 5.4 are based on Class 3 containment which includes impermeable lining to protect soil and groundwater infiltration.
M8: Typical Bund section view
M21: Typical reinforced concrete wall section view
A55: 5.2 | B55: Catastrophic failure
B57: Catastrophic failure assumes the tank loses all its above ground volume and that the total volume would need to be contained.
B61: Suitability of containment to be provided
B63: Type | F63: Applicability | O63: Site overview
B64: Reinforced concrete/masonry flooring and bund | F64: Due to relatively large volume from loss of containment, use of a masonry/concrete bund is generally not appropriate for local containment. Because local containment necessitates a deeper bund or a long concrete wall, difficulties arise. The containment's high wall height poses a health and safety danger of a potential fall and being trapped if the tank breaks while someone is within the enclosure. Furthermore, because concrete is vulnerable to heat shrinkage and expansion, which can cause cracks, concrete/masonry bunds require constant inspection and maintenance to ensure their impermeability. Sheet pile walls are preferred to achieve complete impermeability of the containment, if space for bunded areas is not available.
B65: Earth banked basins, bunds and flooring | F65: Soil within site is of permeable nature - soft to firm consolidated, compressible silty clay, but may also include layers of silt, sand, peat and gravel. Potential for stabilised soil (lime and cement used to make it impermeable) for bund construction is limited. Importing of sufficient volumes of non-porous material would likely be required. Dependant on area required and nature of surrounding area, might be applicable
B66: Containment tank | F66: Nature of catastrophic failure and type of primary containment makes the use of a containment tank not appropriate
A69: 5.3 | B69: Catastrophic failure in existing situation (Do Nothing) - Visualisation
M76: Provided for information only - does not represent a solution
A106: 5.3 | B106: Containment Solution
B109: The containment volume required is based on the larger of the 110% of the largest tank or 25% of the total volume of the tanks.
B110: In all scenarios outlined below the 110% rule applies, see worksheet 3. Noting that above-ground volumes are used in line with CIRIA C736 and reflecting a practical maximum spill that could be encountered.
B111: New impermeable areas will be installed to provide an appropriate containment bund floor surface for the full bunded area. Detailed survey outcomes regarding the remediation and reuse of existing surfaces in line with the below comments may determine the need for additional new impermeable surfaces.
B113: Millbrook STC
B114: Proposal Summary
B116: The solution comprises of three distinct bunds based on local needs.
B117: It should be noted that this site has proved particularly complex to provide a solution that appropriately balances the containment requirements whilst ensuring an appropriate operational basis. The operational impact of providing containment is considerable from the walls required and the equipment this isolates for maintenance etc. Risks remain that require specific consideration including HazOp review in detailed design.
B118: Whilst this is not considered insurmountable (being technically feasible) it incurs a considerable cost which may influence the final outcome more than most other sites.
B119: New walls will be installed to contain a spill, these are illustrated to the right and comprise of an estimated total of: Lining of existing earth banks of typical 0.7m height - Orange line - total 510m (250m East side, 260m west) New concrete wall of [average] 0.7m height (local heigh varies in line with existing topography to achieve required top of wall height relative to local spill depth), total 170m. This includes the replacement of some existing walls which are not to CIRIA C736 standard. Kerb remediation extent not shown but required at the perimeter of the spill and remediation of walls at the cake bays in the middle. Note final freeboard height to be determined in detailed design, see narrative provided below for specific topics of consideration.
B120: Note the existing topography ensures a failure of tanks of the west side of side will flow to the east and thus be contained by the proposed solution.
B123: Main Bund - digestors & related
B125: Solution is for a new reinforced concrete wall on the line shown in yellow to the right.
B126: Total length of 330m and typical local height of 1.3m
B127: The existing area is largely level, re-profiling of the bund floor during construction will provide a uniform depth for the containment and avoid the low spot showing as orange.
B128: This will significantly impact operational activities so requires new access and egress routes
B129: The line of the wall has been selected to balance protection of other assets from a feasible (though complex) route around existing assets. Further detailed surveys will determine the full extent of the modifications required to accommodate the wall.
B146: Post Screened Storage (PSST)
B147: Two predominantly below ground tanks.
B148: A new wall of 145m length and 0.5m will provide the required containment.
B149: This mitigates impacting key vehicle manoeuvring areas to the north and provides containment greater than calculated requirement of 365m3 (on worksheet 3).
B150: New impermeable surface will be installed within the bund and tie into the tank external wall
B151: A new sump and drain pump will be installed to return rainwater to the head of works.
B153: Spill modelling has not been completed on this area as the existing ground is largely flat and will have a small amount of reprofiling (lowering the existing ground) to provide the required drainage falls. This will be detailed in the construction phase drawings subject to further surveys. A 2D calculation has been determined to be sufficient to demonstrate appropriate containment capacity.
B158: Thickened Sludge Storage Tanks (TSSTs)
B159: Two above ground tanks.
B160: A new reinforced concrete wall of 110m length and 1.5m height will provide the required containment.
B162: Some existing impermeable surface will be utilised to minimise the changes to the tank foundations (subject to detailed survey). Additional detailing is required for the tie-in of the new wall into the existing surface and this is likely to be a concrete impermeable surface solution.
B163: A new sump and drain pump will be installed to return rainwater to the head of works.
B164: A jetting solution is required and is likely to be a form of fencing on top of the wall, this remains subject to further calculations and design development
B166: Spill modelling has not been completed on this area as the existing ground is largely flat and will have a small amount of reprofiling (lowering the existing ground) to provide the required drainage falls. This will be detailed in the construction phase drawings subject to further surveys. A 2D calculation has been determined to be sufficient to demonstrate appropriate containment capacity.
B168: The tanks are a challenge to provide containment for given the vehicle access routes and public road. Relocation of the tanks has been considered but no appropriate location has been identified due to extensive planned works on the wider site and operation need for proximity to supporting assets (thickeners). Additionally replacement with collared tanks has been considered but at this stage is thought to be more technically complex than localised bunding.
B172: Slowhill Copse
B174: Millbrook site receives sludge transfers via a pipeline from Slowhill Copse approx. 1km away on the south side of the River Test. As such the IED permit application has been updated to include Slowhill Copse and containment solutions are provided here for Slowhill Copse to align. Slowhill Copse takes sludge from imports and the adjacent water treatment works and transfers it to Millbrook STC. The same risk basis outlined in worksheet 2 has been adopted for Slowhill Copse on a conservative basis as the risks are perceived to be no greater than for Millbrook STC.
B177: Unscreened Sludge Tanks bund
B178: Three partially buried tanks. See worksheet 3 for containment calculations.
B180: A new wall of 215m length and provisionally varying from 0.4 to 2.3m will provide the required containment.
B181: This area is not level as shown by the spill model output below and improvements are thought to be realisable
B182: Opportunities to reprofile the area to provide a level (with drainage falls) base will be explored following further surveys and calculation to confirm tank structural considerations (ensure embankment at tank side was is not an original design requirement). Should the be realisable it is anticipated that a more uniform wall height of around 1.3m could be achieved. This also requires consideration of the wider area/assets.
B183: New impermeable surface will be installed within the bund and tie into the tank external wall
B184: A new sump and drain pump will be installed to return rainwater to the head of works.
B208: Screened Sludge Storage Tanks bund
B209: Two predominantly below ground tanks.
B210: A new wall of 100m length and 1.2m will provide the required containment volume.
B211: Restriction to the area shown mitigates impacting key vehicle manoeuvring routes.
B212: New impermeable surface will be installed within the bund and tie into the tank external wall
B213: A new sump and drain pump will be installed to return rainwater to the head of works.
B215: Spill modelling has not been completed on this area as the existing ground is largely flat and will have a small amount of reprofiling (lowering the existing ground) to provide the required drainage falls. This will be detailed in the construction phase drawings subject to further surveys. A 2D calculation has been determined to be sufficient to demonstrate appropriate containment capacity.
B227: Containment Solution Scope for all solutions outlined above
B228: New walls will be built to contain 110% of the largest tank, the final height of the walls remains subject to confirmation but illustrative heights are shown on the images to the right.
B229: The wall type remains subject to confirmation following further detailed design development and contractor input. The current anticipated solutions are a combination (as most suited to a given area): Reinforced concrete walls of various heights based on local need. Earth banks lined with concrete canvas are proposed where there are existing earth banks or suitable volume of appropriate material is available in the area. This offers the opportunity for compliant solution at lower cost and lower embodied carbon. Additional wall types are available and form part of the ongoing design development considerations to ensure the most appropriate solution is adopted. These are typically formed of a structural wall element (pre-formed concrete blocks, sheet piles, gabion cages) with a liner. Until the full review has been completed and appropriate competent person has signed them off this remains subject to context-specific evaluation.
B230: Extensive new impermeable surfaces meeting the required 10-9m/s impermeability will be installed in line with CIRIA C736. This is planned to be a combination of reinforced concrete and concrete canvas but some localised applications may be more suited to alternative solutions from table 8.2 of CIRIA C736. New impermeable areas will provide a continuous surface over the area identified as within the bund, this includes existing gravel areas between tanks and equipment. Details for tie in to existing structures to ensure an appropriate containment solution will either be to manufacturers details or developed on specifically for the application. Some existing surfaces will be utilised, the extent remains subject to detailed survey and identification of appropriate remediation to ensure it meets an appropriate standard.
B231: Buildings and other operational equipment are excluded from use for containment volume calculations based on a provisional assumption that they will be protected from flood and reflects a more conservative position for the calculation of containment volumes.
B232: In the event of a spill the contained sludge and any rainwater will not be returned to the works inlet. It is proposed that sludge tankers will be utilised to empty the bund with suction hoses. This will form part of revised spill procedure based on the final design and further assessment and planning. The site operator will have a daily action to empty the bund of rainwater. The scope includes new sumps, electrical pumps, sample points and the required pipework to return the rainwater to the works inlet. This will be a manual start pump and require a check by the operator for evidence of any spills prior to starting the pump. The pump will have an anti-syphon arrangement and auto-shutoff at low-level. The location of sumps and pipework routes will be identified in detailed design. The rainfall containment volume accounts for 24hours at AEL rainfall. Noting the CIRIA C736 requirement for 8 days at AEL, further design and operational planning will determine the detail of a recovery scenario (re. tanker removal vs rainfall accumulation), the outcome of this will inform the final allowance for freeboard for rain and the findings will be reflected in the final wall heights.
B233: No allowance for firefighting foam capacity has been made as the substances under consideration are not flammable. As such, fire is not a scenario that is considered practically feasible and is considered to align to CIRIA C736 figure 4.3 for non-combustible contents This remains subject to acceptance by the Environment Agency in design development and acceptance of improvement condition plans. Should it be deemed required an allowance can be made on wall heights to accommodate this.
B234: Overfilling tanks has not been modelled as the operational control processes (level gauges, SCADA etc) are thought to be sufficiently robust to demonstrate this spill scenario requires less containment than a catastrophic tank failure scenario. Additionally the tank modelled is the largest tank and tank transfers are only completed from single tank to single tank. Surveys in relation to level gauges etc to address BAT 19 and subsequent analysis of findings will determine if this correct.
B235: Surge allowance will be made on a standardised basis of additional height on the bund wall.
B236: The use of flood gates has been excluded from all solutions (on all sites) on the basis their operation is not guaranteed to be timed correctly, presents a single point of failure and may adversely impede any response scenario.
B237: The distance of tanks from walls means jetting to outside of the bunded area is thought unlikely, this remains subject to further evaluation and calculation in the next stage of design including consideration of tank types and the orientation (e.g. concrete tanks, other buildings/existing fences etc). Should a jetting risk be determined appropriate mitigating measures will be implemented as part of the overall solution to ensure any liquids remain within the bunded area.
B238: The bunded areas will be re-profiled locally to achieve the required falls to accommodate new sumps and pumps
B239: The drainage solution for the area will be reviewed and further intrusive surveys completed to ensure any existing drainage that may be utilised is of good condition and retains water in line with the bunding requirements. It is anticipated that extensive drainage modifications will be required to ensure all bunded areas are captured and surface water dealt with in line with BAT. This requires additional design work to determine the most appropriate solution. Any existing soak aways (or similar) within a bunded area will be removed and appropriate BAT compliant drainage solutions provided. Roof areas where BAT permits for uncontaminated rainwater to be directed to the ground (outside the bund) will be considered to reduce the amount of water flowing in drains or returned to the WtW.
B240: Existing pits, chambers and other existing assets in the bunded area will be reviewed on a local basis to determine the most appropriate solution to provide appropriate containment. This is anticipated to require the replacement of pit covers with water tight/sealed versions to ensure containment. This is not reflected in CIRIA C736 but is considered appropriate and the wholesale removal of pit and ducts, underground chambers and pipework is cost-prohibitive.
B241: No retrofitted leak detection under existing tanks is proposed, alternative solutions to manage the risk will be developed. This will include tank inspections, tank periodic hydrotesting and (subject to contamination hydrogeologist review of the application) boreholes to monitor for leakage. The basis for this is that retrofitting may cause settlement issues or create voids under tanks which would counter the objective of the leak detection. Additionally most tanks have either a concrete tank base, or a concrete foundation under the tank base, thus providing an appropriate impermeable surface in line with CIRIA C736.
B242: The majority of the pipework would be within the existing bund and thus provided with appropriate containment. Existing underground pipework would not be replaced wholesale but will be tested/inspected and appropriate solutions developed based on the findings. Over time the underground pipework would be replaced with above-ground pipework as and when other projects require changes to the site layout/operation. Where pipework is not within the bunded area a case by case review will determine an appropriate means of leak detection and secondary containment (based on factors like insulation, condition, routing, pumped/gravity system).
B243: All process areas will be provided with hardstanding where not existing and appropriate drainage and instrumentation to determine leak presence, thus a failure of equipment within the process area would be appropriately contained.
B244: Existing walls and kerbs will be utilised for shallow spill areas, these will undergo a detailed survey to identify appropriate remediation which will be completed to provide an appropriate containment 'wall'. Speed humps will be installed on the roads to reduce the spread of any smaller spills.
B245: Spill modelling has not been completed for all tanks as CIRIA C736 does not require this, nor is it thought required as part of normal good practice. The containment of all tanks and the suitability of the design for this scenario has been assured through consideration of existing topo and consideration of the flows in a given area relative to the volume of the other (smaller) tanks in question.
B246: Provisional DSEAR guidance suggests any methane present would disperse rapidly and not present a potentially explosive atmosphere. Further evaluation of this will be undertaken in design and may determine the need for design changes which would be incorporated to the solution outlined.
B249: Modelling notes.
B250: The model was built in Infoworks ICM 2021.9 and provides a 2D output of a 3D scenario
B251: The model utilised a combination of LiDAR / Digital Terrain Model data with topographical survey data as an additional reference
B252: A mesh was created by the modeller to represent the topography of the existing site
B253: Drainage was excluded on the basis that modification of drainage systems will be required to ensure no links to outside the bund.
B254: Building areas were excluded from containment volume areas - assumes no flooding of internal areas of the building
B255: The whole area is treated as impermeable surface reflecting the required final state for the bund floor
B256: Levels and wall heights represent 'settled' levels
B257: Rainfall has been accounted for in the model scenarios - however this will be verified in relation to final wall heights (see design development)
A260: Solution Development Notes with respect to the wider context within which IED will be delivered
B262: The design for the containment continues to progress and remains subject to further development.
B263: The design will require sign off by a competent civil or structural engineer.
B264: CIRIA C736 compliance is the objective (and BAT is the referenced requirement). A few elements regarding CIRIA C736 details in the context of this application will be reviewed by a qualified engineer for suitability and as outlined in CIRIA C736 we will look to discuss this with the EA as our regulator. Some queries are in line with additional guidance offered by the Agency in other forums (TaF, Defra meetings et. al.). This may include:
B265: Accounting for rainfall accumulation in bunds will be reviewed in further detail to determine final wall heights - this will look to consider:
C266: Operational process in no-spill scenario for daily removal of rainwater and return to head of works (inc. determining the presence of spilled sludge)
C267: Emergency response in spill scenario for removal of sludge (likely using road tankers and suction)
C268: Allowance for climate change in rainfall calculations
C269: Duration of AEL rainfall required to be accommodated with respect to CIRIA C736 and the final operational basis for normal and spill scenarios
B270: Steel plating over joints as the origin of this (within CIRIA C736) was in related to a fire scenario for hydrocarbon storage and may not be required for STC/sludge facility/storage.
B271: The relationship between the risk assessment 'CIRIA classification' and the details for the solutions proposed, particularly differentiating between Class two and class three requirements.
B272: The use of Concrete Canvas (as it is not listed in CIRIA C736 table 8.2 but can be demonstrated to meet the 10^-9m/s impermeability requirement)
B273: The need for sub-surface 1m impermeable soil based on type of stored material (re. CIRIA C736 figure 8.4) and the requirement for under-bund lead detection (class 3). An alternative solution with lower carbon impact may be proposed for the sub-surface and based on SMR in-situ remediation solution.
B274: Where existing surfaces are proposed to be utilised the details in CIRIA C736 may not be fully achieved as retrofitting of water bars is not considered feasible. A suitably qualified person will be required to approve any proposed solutions.
B275: The use of sealed covers for existing pits as not clearly defined in CIRIA C736
B276: The context in which IED will be delivered at this site will look to reflect the wider guidance provided around IED implementation.
B277: The following points are considered relevant factors in provision of the final solution implemented at the site:
B278: Wording of improvement conditions and agreement for acceptable solutions with Local Agency Installation Officers only being possible upon receipt of permit/draft permit
B279: This element is reflected in an Uncertainty mechanism with respect to Ofwat submissions
B280: Demonstration of appropriate risk-management for the time period required, including consideration of the tank condition, material and inspection report for remaining life
B281: Millbrook STC is part of the Bioresources consolidation plan whereby, in a future phase beyond AMP8, it is planned to be developed into an Advanced Anaerobic Digestion (AAD) site.
B282: The current digestion activities will remain beyond the end of AMP8, as such compliant containment proposals are planned for all STC assets.

Sheet Template Settings (hidden)
B3: Ribbon ID | C3: 1443527581264 | D3: Ribbon Visible | E3: TRUE | F3: These cells are used by the template and should not be altered
B4: Template Owner | C4: adam.grove@mottmac.com
B5: Template Version History
B6: Version | C6: Description | F6: Person | G6: Date
B7: A | C7: Intital Template | F7: Adam Grove | G7: 2013-08-30
B8: B | C8: Bug fixes | F8: Adam Grove | G8: 2013-11-04
B9: C | C9: Common Graph format added | F9: Adam Grove | G9: 2013-12-20
B10: D | C10: Spell chekcking! | F10: Adam Grove | G10: 2014-04-07
B18: Divisions | C18: List any additional divisions to be included here | F18: Chart Series Colours
B19: WCD/WAM | G19: Red | H19: Green | I19: Blue
B20: WCD/NWC | F20: 1 | G20: 41 | H20: 136 | I20: 201
B21: WCD/CWC | F21: 2 | G21: 237 | H21: 40 | I21: 145
B22: WCD/SWC | F22: 3 | G22: 63 | H22: 182 | I22: 91
B23: MMB/NMB | F23: 4 | G23: 255 | H23: 212 | I23: 28
B24: MMB/CMB | F24: 5 | G24: 239 | H24: 56 | I24: 50
B25: MMB/SMB | F25: 6 | G25: 39 | H25: 189 | I25: 190
B26: EVT/EMP | F26: 7 | G26: 128 | H26: 53 | I26: 148
F27: 8 | G27: 242 | H27: 101 | I27: 41
F28: 9 | G28: 39 | H28: 111 | I28: 154
F29: 10 | G29: 251 | H29: 172 | I29: 38
F30: 11 | G30: 160 | H30: 191 | I30: 61
F31: 12 | G31: 0 | H31: 158 | I31: 154
B40: MM Logos
B41: Name | C41: Picture Name | D41: Logo
B42: MM | C42: LogoMM | E42: Logo should be of width <=3cm, height <=1.4cm Rename the logo picture with the name in the Picture Name column (no spaces)
B43: MMB | C43: LogoMMB | E43: Logos can be added to the sheets using the 'Other Settings' button in the ribbon
B44: GBM | C44: LogoGBM

Sheet Settings (hidden)
B2: Please use this page for any settings including lists used in dropdown (validation) cells
B4: Lists
B6: List1
